fUSD/lending_fUSD_20240618
["ID","MTS","AMOUNT","RATE_DAILY","PERIOD"]
[329825231,1718710248749,-500.0,0.00019597,2]
[329825232,1718710248759,-113900.79861109,0.000197,2]
[329825233,1718710248770,-150.0,0.00019741,2]
[329825234,1718710248780,-150.0,0.00019741,2]
[329825235,1718710248790,-151.05,0.00019741,2]
[329825236,1718710248801,-150.0,0.00019741,2]
[329825237,1718710248811,-150.0,0.00019741,2]
[329825238,1718710248822,-150.0,0.00019741,2]
[329825239,1718710248832,-150.0,0.00019741,2]
[329825240,1718710248843,-527.26,0.00019741,2]
[329825241,1718710248853,-354.02,0.00019741,2]
[329825242,1718710248863,-150.0,0.00019741,2]
[329825243,1718710248874,-150.0,0.00019741,2]
[329825244,1718710248884,-150.0,0.00019741,2]
[329825245,1718710248894,-527.26,0.00019741,2]
[329825246,1718710248904,-150.0,0.00019741,2]
[329825247,1718710248915,-354.02,0.00019741,2]
[329825248,1718710248925,-150.0,0.00019741,2]
[329825249,1718710248935,-257.46,0.00019741,2]
[329825250,1718710248946,-150.0,0.00019741,2]
[329825251,1718710248957,-527.26,0.00019741,2]
[329825252,1718710248967,-150.0,0.00019741,2]
[329825253,1718710248978,-150.0,0.00019741,2]
[329825254,1718710248988,-150.0,0.00019741,2]
[329825255,1718710248999,-354.02,0.00019741,2]
[329825256,1718710249009,-527.26,0.00019741,2]
[329825257,1718710249019,-150.0,0.00019741,2]
[329825258,1718710249029,-150.0,0.00019741,2]
[329825259,1718710249039,-150.0,0.00019741,2]
[329825260,1718710249049,-152.2,0.00019741,2]
[329825261,1718710249060,-164.48,0.00019741,2]
[329825262,1718710249069,-150.0,0.00019741,2]
[329825263,1718710249080,-527.26,0.00019741,2]
[329825264,1718710249090,-150.0,0.00019741,2]
[329825265,1718710249102,-354.02,0.00019741,2]
[329825266,1718710249112,-150.0,0.00019741,2]
[329825267,1718710249122,-150.0,0.00019741,2]
[329825268,1718710249132,-150.0,0.00019741,2]
[329825269,1718710249142,-164.48,0.00019741,2]
[329825270,1718710249153,-150.0,0.00019741,2]
[329825271,1718710249163,-164.48,0.00019741,2]
[329825272,1718710249173,-164.48,0.00019741,2]
[329825273,1718710249184,-423.35,0.00019741,2]
[329825274,1718710249195,-150.0,0.00019741,2]
[329825275,1718710249205,-354.02,0.00019741,2]
[329825276,1718710249215,-527.26,0.00019741,2]
[329825277,1718710249225,-150.0,0.00019741,2]
[329825278,1718710249235,-150.0,0.00019741,2]
[329825279,1718710249245,-164.48,0.00019741,2]
[329825280,1718710249255,-423.35,0.00019741,2]
[329825281,1718710249266,-150.0,0.00019741,2]
[329825282,1718710249276,-423.35,0.00019741,2]
[329825283,1718710249286,-150.0,0.00019741,2]
[329825284,1718710249297,-150.0,0.00019741,2]
[329825285,1718710249307,-527.26,0.00019741,2]
[329825286,1718710249320,-164.48,0.00019741,2]
[329825287,1718710249330,-354.02,0.00019741,2]
[329825288,1718710249340,-150.0,0.00019741,2]
[329825289,1718710249352,-423.35,0.00019741,2]
[329825290,1718710249633,-422.55,0.00019741,2]
[329825291,1718710249645,-525.55,0.00019741,2]
[329825292,1718710249655,-354.02,0.00019741,2]
[329825293,1718710249664,-150.0,0.00019741,2]
[329825294,1718710249674,-164.48,0.00019741,2]
[329825295,1718710249684,-150.0,0.00019741,2]
[329825296,1718710249694,-150.0,0.00019741,2]
[329825297,1718710249704,-164.48,0.00019741,2]
[329825298,1718710249714,-347.49,0.00019741,2]
[329825299,1718710249724,-500.0,0.00019759,2]
[329825300,1718710249734,-500.0,0.00019768,2]
[329825301,1718710249743,-500.0,0.00019777,2]
[329825302,1718710249754,-500.0,0.00019786,2]
[329825303,1718710249764,-500.0,0.00019794,2]
[329825304,1718710249774,-1000.0,0.000198,2]
[329825305,1718710249784,-500.0,0.00019803,2]
[329825306,1718710249795,-500.0,0.00019839,2]
[329825307,1718710249805,-200.0,0.00019839,2]
[329825308,1718710249815,-500.0,0.00019839,2]
[329825309,1718710249824,-200.0,0.0001984,2]
[329825310,1718710249834,-500.0,0.0001984,2]
[329825311,1718710249845,-200.0,0.0001984,2]
[329825312,1718710249856,-1000.0,0.0001984,2]
[329825313,1718710249866,-200.0,0.0001984,2]
[329825314,1718710249876,-500.0,0.0001984,2]
[329825315,1718710249885,-500.0,0.0001984,2]
[329825316,1718710249895,-500.0,0.0001984,2]
[329825317,1718710249906,-200.0,0.0001984,2]
[329825318,1718710249917,-200.0,0.0001984,2]
[329825319,1718710249927,-500.0,0.00019847,2]
[329825320,1718710249936,-500.0,0.00019856,2]
[329825321,1718710249946,-500.0,0.00019865,2]
[329825322,1718710249957,-500.0,0.00019871,2]
[329825323,1718710249967,-500.0,0.00019871,2]
[329825324,1718710249977,-500.0,0.00019874,2]
[329825325,1718710249988,-500.0,0.00019882,2]
[329825326,1718710249998,-160.0,0.00019882,2]
[329825327,1718710250009,-5800.0,0.00019883,2]
[329825328,1718710250019,-500.0,0.00019891,2]
[329825329,1718710250029,-160.0,0.00019891,2]
[329825330,1718710250039,-5800.0,0.00019892,2]
[329825331,1718710250050,-10000.0,0.00019898,2]
[329825332,1718710250060,-500.0,0.000199,2]
[329825333,1718710250070,-5800.0,0.000199,2]
[329825334,1718710250080,-500.0,0.000199,2]
[329825335,1718710250090,-160.0,0.000199,2]
[329825336,1718710250102,-3797.02717697,0.000199,2]
[329825337,1718710250117,-978.32951094,0.000199,2]
[329825338,1718710250130,-267.62173243,0.000199,2]
[329825339,1718710471598,2630.33508372,0.0002,30]
[329825341,1718710655873,1858.91049381,0.00018,14]
[329825373,1718711433352,-291.826501,0.00011793,2]
[329825374,1718711433364,-162.12835538,0.00011793,2]
[329825375,1718711433374,-150.0,0.00011799,2]
[329825376,1718711433383,-218.73664462,0.000118,2]
[329825377,1718711433396,-22516.6223132,0.000118,2]
[329825378,1718711433405,-433.81,0.00013394,2]
[329825379,1718711433415,-150.0,0.00013863,2]
[329825380,1718711433425,-1000.0,0.00013899,2]
[329825381,1718711433435,-165.24429124,0.000139,2]
[329825382,1718711433444,-211.12655856,0.000139,2]
[329825383,1718711433454,-442.88642667,0.00013998,2]
[329825384,1718711433463,-206.66832031,0.00013998,2]
[329825385,1718711433473,-208.36359805,0.00013999,2]
[329825386,1718711433482,-664.66710917,0.00013999,2]
[329825387,1718711433492,-299.99,0.00013999,2]
[329825388,1718711433505,-1611888.34157434,0.00014,2]
[329825389,1718711433515,-499.99,0.00014,2]
[329825390,1718711433524,-4574.42,0.00014,2]
[329825391,1718711433534,-945.24685772,0.000141,2]
[329825392,1718711433543,-250.0,0.00014211,2]
[329825393,1718711433552,-199.71,0.0001432,2]
[329825394,1718711433563,-1530.12,0.00014413,2]
[329825395,1718711433572,-23900.0,0.00014458,2]
[329825396,1718711433583,-150.99,0.000145,2]
[329825397,1718711433593,-199.13,0.00014506,2]
[329825398,1718711433603,-945.24685772,0.00014627,2]
[329825399,1718711433612,-3962.58127052,0.00015,2]
[329825400,1718711433622,-1922.29719979,0.00015,2]
[329825401,1718711433631,-147000.14395981,0.00015,2]
[329825407,1718711438298,-332.85086543,0.000139,2]
[329825408,1718711438309,-211.1265585,0.00014757,2]
[329825409,1718711438319,-676.23033513,0.00015,2]
[329825410,1718711438331,-406.46916604,0.00015,2]
[329825411,1718711438369,-6435.52777831,0.00015,2]
[329825412,1718711438381,-2816.48894631,0.00015,2]
[329825413,1718711438393,-20790.29815256,0.00015,2]
[329825414,1718711438441,-2307.26791074,0.00015,2]
[329825415,1718711438453,-16934.04267543,0.00015,2]
[329825416,1718711438465,-16156.97721624,0.00015,2]
[329825417,1718711438477,-1599.50354593,0.00015,2]
[329825418,1718711438528,-6671.80037151,0.00015,2]
[329825419,1718711438540,-292874.63777231,0.00015,2]
[329825420,1718711438552,-1163.382,0.00015,2]
[329825421,1718711438564,-428.61941707,0.00015,2]
[329825422,1718711438577,-580.78844532,0.00015,2]
[329825494,1718711440697,-746.54000001,0.00015,2]
[329825495,1718711440795,-779.79852459,0.000139,2]
[329825496,1718711440805,-25.46747536,0.00015,2]
[329825497,1718711440818,-8708.97670485,0.00015,2]
[329825498,1718711440851,-441.72500004,0.00015,2]
[329825499,1718711440863,-1075.18,0.00015,2]
[329825500,1718711440874,-625.335,0.00015,2]
[329825501,1718711440885,-964.57492768,0.00015,2]
[329825502,1718711440896,-341.27000002,0.00015,2]
[329825503,1718711440907,-11188.42004702,0.00015,2]
[329825505,1718711443381,-463.05,0.00015,2]
[329825508,1718711443393,-491.40445475,0.00015,2]
[329825510,1718711443406,-4259.61070056,0.00015,2]
[329825520,1718711443505,-421.94944597,0.00015,2]
[329825524,1718711443517,-630.10225962,0.00015,2]
[329825527,1718711443532,-6738.71209133,0.00015,2]
[329825529,1718711443545,-703.37788318,0.00015,2]
[329825534,1718711443559,-75490.09572456,0.00015,2]
[329825542,1718711443636,-1974.8225,0.00015,2]
[329825545,1718711443648,-470.95143922,0.00015,2]
[329825548,1718711443660,-7552.99627616,0.00015,2]
[329825551,1718711443672,-437.8405502,0.00015,2]
[329825555,1718711443684,-791.63952452,0.00015,2]
[329825557,1718711443695,-1299.4208445,0.00015,2]
[329825559,1718711443709,-4631.34297496,0.00015,2]
[329825562,1718711443722,-536.26211813,0.00015,2]
[329825604,1718711445675,-1499.90008,0.00015,2]
[329825605,1718711445687,-493.09011844,0.00015,2]
[329825606,1718711445698,-5177.5175671,0.00015,2]
[329825607,1718711445715,-1685.47391358,0.00015,2]
[329825608,1718711445727,-856.20926424,0.00015,2]
[329825609,1718711445740,-1900.41,0.00015,2]
[329825610,1718711445756,-255.637,0.00015,2]
[329825611,1718711445801,-431.72242425,0.00015,2]
[329825612,1718711445813,-15228.53491843,0.00015,2]
[329825613,1718711445834,-769.02819339,0.00015,2]
[329825614,1718711445847,-2109.00918826,0.00015,2]
[329825615,1718711445859,-2532.01049383,0.00015,2]
[329825616,1718711445872,-3694.55916163,0.00015,2]
[329825617,1718711445899,-850.89999999,0.00015,2]
[329825618,1718711445911,-959.66047797,0.00015,2]
[329825619,1718711445923,-5889.685558,0.00015,2]
[329825620,1718711445935,-2105.84042413,0.00015,2]
[329825621,1718711445948,-3150.39333094,0.00015,2]
[329825622,1718711446000,-17542.70841109,0.00015,2]
[329825652,1718712632227,-193.37838024,0.000117,2]
[329825653,1718712632238,-155.0,0.00011701,2]
[329825654,1718712632248,-3069.76697533,0.00011701,2]
[329825655,1718712632257,-507.47933789,0.00011702,2]
[329825656,1718712632267,-943.44159956,0.00011703,2]
[329825657,1718712632275,-25.93370808,0.00011704,2]
[329825658,1718712632287,-1194.8565164,0.00011704,2]
[329825659,1718712632297,-225.3634836,0.00011704,2]
[329825667,1718712637638,-321.17805015,0.00011704,2]
[329825668,1718712637649,-1056.74743279,0.00011719,2]
[329825669,1718712637660,-518.98,0.00011728,2]
[329825670,1718712637670,-7109.16,0.00013558,2]
[329825671,1718712637681,-1000.0,0.00013582,2]
[329825672,1718712637691,-238.59811325,0.00013672,2]
[329825673,1718712637703,-1002.44915008,0.00013672,2]
[329825674,1718712637716,-1033.83273667,0.00013672,2]
[329825675,1718712637726,-199.71,0.00013699,2]
[329825676,1718712637736,-182.47,0.00013736,2]
[329825677,1718712637746,-37.98726333,0.00013736,2]
[329825678,1718712637767,-843.26879741,0.00013736,2]
[329825679,1718712637780,-117.56393926,0.00013736,2]
[329825680,1718712637790,-366.09606074,0.00013765,2]
[329825681,1718712637846,-119.71393926,0.00013765,2]
[329825682,1718712637858,-183.57931659,0.00013775,2]
[329825683,1718712637948,-381.32408304,0.00013775,2]
[329825684,1718712637958,-150.75378484,0.00013794,2]
[329825685,1718712637970,-99.24621516,0.00013794,2]
[329825686,1718712637980,-250.0,0.00013848,2]
[329825687,1718712637990,-1052.06455557,0.00013887,2]
[329825688,1718712638000,-1000.0,0.000139,2]
[329825689,1718712638010,-518.98,0.00013991,2]
[329825691,1718712638020,-1112.5,0.00014737,2]
[329825693,1718712638029,-299.99,0.00014737,2]
[329825695,1718712638039,-1112.5,0.0001474,2]
[329825697,1718712638049,-1112.5,0.00014744,2]
[329825699,1718712638059,-1026.67841696,0.00014747,2]
[329825701,1718712638069,-1112.5,0.00014748,2]
[329825703,1718712638079,-1112.5,0.00014752,2]
[329825705,1718712638089,-464.57548111,0.00014756,2]
[329825720,1718712642144,-647.92451889,0.00014756,2]
[329825721,1718712642153,-52.29215608,0.0001476,2]
[329825722,1718712642268,-1060.20784392,0.0001476,2]
[329825723,1718712642278,-1112.5,0.00014764,2]
[329825724,1718712642287,-1000.0,0.00014767,2]
[329825725,1718712642297,-1112.5,0.00014768,2]
[329825726,1718712642307,-1112.5,0.00014772,2]
[329825727,1718712642316,-1112.5,0.00014775,2]
[329825728,1718712642325,-1112.5,0.00014779,2]
[329825729,1718712642338,-1112.5,0.00014783,2]
[329825730,1718712642349,-1112.5,0.00014787,2]
[329825731,1718712642359,-1112.5,0.00014791,2]
[329825732,1718712642369,-6069.924,0.00014791,2]
[329825733,1718712642378,-1112.5,0.00014795,2]
[329825734,1718712642388,-1112.5,0.00014799,2]
[329825735,1718712642397,-1112.5,0.00014803,2]
[329825736,1718712642407,-1112.5,0.00014807,2]
[329825737,1718712642416,-1112.5,0.0001481,2]
[329825738,1718712642426,-399.4,0.00014934,2]
[329825739,1718712642435,-915.32779154,0.00014964,2]
[329825740,1718712642445,-167.71,0.00014969,2]
[329825741,1718712642455,-155.37423626,0.00014998,2]
[329825742,1718712642465,-1277.45304415,0.00014998,2]
[329825743,1718712642474,-1067.92836055,0.00014998,2]
[329825744,1718712642484,-358.91103888,0.00014998,2]
[329825745,1718712642494,-1250.82585275,0.00014998,2]
[329825746,1718712642503,-209.17988804,0.00014999,2]
[329825747,1718712642512,-481.00517144,0.00014999,2]
[329825748,1718712642526,-2823.25950554,0.00014999,2]
[329825749,1718712642536,-247.01683963,0.00014999,2]
[329825750,1718712642545,-155.5729,0.00014999,2]
[329825751,1718712642555,-109814.23277236,0.00015,2]
[329825752,1718712642565,-114732.26620782,0.00015,2]
[329825753,1718712642574,-622.06050142,0.00015,2]
[329825754,1718712642583,-3000.0,0.00015,2]
[329825755,1718712642593,-150.0,0.00015,2]
[329825756,1718712642603,-150.0,0.00015,2]
[329825757,1718712642612,-150.0,0.00015,2]
[329825758,1718712642622,-150.0,0.00015,2]
[329825761,1718712642631,-150.0,0.00015,2]
[329825765,1718712642640,-150.0,0.00015,2]
[329825769,1718712642651,-168.08,0.00015064,2]
[329825772,1718712642661,-300.0,0.00015135,2]
[329825774,1718712642671,-1000.0,0.00015279,2]
[329825777,1718712642680,-215.68,0.00015371,2]
[329825779,1718712642690,-915.32779152,0.00015669,2]
[329825780,1718712642699,-167.0,0.00015831,2]
[329825781,1718712642708,-167.0,0.00015831,2]
[329825791,1718712642718,-689.364312,0.0001589,2]
[329825792,1718712642967,-518.98,0.00016255,2]
[329825793,1718712642977,-167.0,0.00016354,2]
[329825794,1718712642986,-915.32779152,0.00016374,2]
[329825795,1718712642996,-2274.88,0.00016411,2]
[329825796,1718712643005,-8958.06,0.00016438,2]
[329825797,1718712643014,-167.71,0.00016466,2]
[329825798,1718712643024,-300.0,0.00016505,2]
[329825799,1718712643034,-232.08173327,0.00016508,2]
[329825800,1718712643043,-500.0,0.00016583,2]
[329825801,1718712643051,-600.0,0.00016583,2]
[329825802,1718712643060,-3800.0,0.00016583,2]
[329825803,1718712643070,-900.0,0.00016583,2]
[329825804,1718712643079,-4100.0,0.00016583,2]
[329825805,1718712643088,-689.364312,0.00016712,2]
[329825806,1718712643098,-167.0,0.00016876,2]
[329825807,1718712643107,-1156.8,0.00016922,2]
[329825808,1718712643118,-29999.99,0.00016922,2]
[329825809,1718712643129,-479.46,0.00016922,2]
[329825810,1718712643138,-5822.0,0.00016922,2]
[329825811,1718712643148,-164.19,0.00016952,2]
[329825812,1718712643158,-1000.0,0.00016977,2]
[329825813,1718712643167,-164.19,0.00017029,2]
[329825814,1718712643175,-915.32779152,0.00017079,2]
[329825815,1718712643184,-164.19,0.00017106,2]
[329825816,1718712643193,-500.0,0.00017131,2]
[329825818,1718712643203,-600.0,0.00017131,2]
[329825820,1718712643214,-3800.0,0.00017131,2]
[329825822,1718712643224,-900.0,0.00017131,2]
[329825823,1718712643233,-4100.0,0.00017131,2]
[329825824,1718712643242,-182.47,0.00017171,2]
[329825825,1718712643252,-164.19,0.00017184,2]
[329825826,1718712643261,-150.78,0.00017193,2]
[329825827,1718712643271,-585.0,0.000172,2]
[329825828,1718712643280,-2417.0,0.000172,2]
[329825829,1718712643289,-164.19,0.00017263,2]
[329825830,1718712643299,-164.19,0.00017342,2]
[329825831,1718712643308,-167.0,0.00017399,2]
[329825832,1718712643318,-164.19,0.00017422,2]
[329825833,1718712643328,-689.364312,0.00017534,2]
[329825834,1718712643338,-600.0,0.00017679,2]
[329825835,1718712643348,-3800.0,0.00017679,2]
[329825836,1718712643358,-900.0,0.00017679,2]
[329825837,1718712643367,-4100.0,0.00017679,2]
[329825838,1718712643377,-333.49290191,0.00017691,2]
[329825839,1718712643387,-915.32779152,0.00017785,2]
[329825840,1718712643397,-424.69537084,0.0001789,2]
[329825841,1718712643407,-290.12695926,0.000179,2]
[329825842,1718712643417,-167.0,0.00017921,2]
[329825843,1718712643427,-167.71,0.00017963,2]
[329825844,1718712643437,-32430.63558338,0.00018,2]
[329825845,1718712643447,-1048.70450835,0.00018,2]
[329825846,1718712643456,-1049.32277001,0.00018,2]
[329825847,1718712643465,-2489.57083121,0.00018,2]
[329825848,1718712643475,-500.0,0.00018227,2]
[329825849,1718712643484,-600.0,0.00018227,2]
[329825850,1718712643493,-3800.0,0.00018227,2]
[329825851,1718712643503,-900.0,0.00018227,2]
[329825852,1718712643513,-4100.0,0.00018227,2]
[329825853,1718712643523,-689.364312,0.00018356,2]
[329825854,1718712643533,-167.0,0.00018444,2]
[329825855,1718712643543,-915.32779152,0.0001849,2]
[329825856,1718712643552,-700.0,0.000185,2]
[329825857,1718712643561,-518.98,0.00018519,2]
[329825858,1718712643571,-1000.0,0.00018675,2]
[329825859,1718712643580,-222.9,0.00018771,2]
[329825860,1718712643589,-1303.77297521,0.00018884,2]
[329825861,1718712643601,-1141.0,0.000189,2]
[329825862,1718712643611,-1081.91528404,0.00019,2]
[329825863,1718712643620,-418.09,0.00019041,2]
[329825864,1718712643630,-418.09,0.00019041,2]
[329825865,1718712643640,-852.19,0.00019041,2]
[329825866,1718712643649,-418.09,0.00019041,2]
[329825867,1718712643660,-852.19,0.00019041,2]
[329825868,1718712643669,-418.09,0.00019041,2]
[329825869,1718712643679,-852.19,0.00019041,2]
[329825870,1718712643688,-418.09,0.00019041,2]
[329825871,1718712643697,-852.19,0.00019041,2]
[329825872,1718712643706,-405.28,0.00019041,2]
[329825873,1718712643716,-417.13,0.00019041,2]
[329825874,1718712643726,-2274.88,0.00019151,2]
[329825875,1718712643735,-222.9,0.00019168,2]
[329825876,1718712643745,-199.71,0.00019178,2]
[329825877,1718712643756,-689.364312,0.00019178,2]
[329825878,1718712643765,-834.23,0.00019178,2]
[329825879,1718712643776,-915.32779152,0.00019195,2]
[329825880,1718712643789,-741.0,0.00019213,2]
[329825881,1718712643798,-150.0,0.00019213,2]
[329825882,1718712643808,-500.0,0.00019323,2]
[329825883,1718712643818,-600.0,0.00019323,2]
[329825884,1718712643828,-3800.0,0.00019323,2]
[329825885,1718712643838,-900.0,0.00019323,2]
[329825886,1718712643850,-4100.0,0.00019323,2]
[329825887,1718712643859,-151.36,0.00019452,2]
[329825888,1718712643868,-624.621768,0.000195,2]
[329825889,1718712643877,-222.9,0.00019565,2]
[329825890,1718712643891,-380.0,0.00019567,15]
[329825891,1718712643900,-380.0,0.00019577,15]
[329825892,1718712643910,-151.2,0.0001958,15]
[329825893,1718712643920,-380.0,0.00019587,15]
[329825894,1718712643930,-68543.40548398,0.00019699,2]
[329825895,1718712643939,-4408.17692572,0.000197,2]
[329825896,1718712643949,-248.117,0.00019711,2]
[329825897,1718712643958,-151.011,0.00019711,2]
[329825898,1718712643968,-168.756,0.00019711,2]
[329825899,1718712643978,-248.162,0.00019711,2]
[329825900,1718712643988,-1403.743,0.00019711,2]
[329825901,1718712643998,-359.0,0.00019711,2]
[329825902,1718712644008,-1830.0,0.00019711,2]
[329825903,1718712644018,-165.0,0.00019711,2]
[329825904,1718712644028,-1653.0,0.00019711,2]
[329825905,1718712644037,-812.0,0.00019711,2]
[329825906,1718712644047,-617.0,0.00019711,2]
[329825907,1718712644057,-442.0,0.00019711,2]
[329825908,1718712644067,-150.0,0.00019711,2]
[329825909,1718712644076,-2410.0,0.00019711,2]
[329825910,1718712644086,-1304.0,0.00019711,2]
[329825911,1718712644097,-447.0,0.00019711,2]
[329825912,1718712644106,-3198.0,0.00019711,2]
[329825913,1718712644116,-547.0,0.00019711,2]
[329825914,1718712644129,-1981.0,0.00019711,2]
[329825915,1718712644147,-290.0,0.00019711,2]
[329825916,1718712644159,-38125.0,0.00019711,2]
[329825917,1718712644169,-5163.0,0.00019711,2]
[329825918,1718712644180,-5794.0,0.00019711,2]
[329825919,1718712644189,-1067.0,0.00019711,2]
[329825920,1718712644200,-169.75322856,0.00019778,2]
[329825921,1718712644210,-829.38072415,0.0001978,2]
[329825922,1718712644219,-174.49944535,0.00019782,2]
[329825923,1718712644229,-165.24429124,0.00019782,2]
[329825924,1718712644240,-4131.03595872,0.00019782,2]
[329825925,1718712644250,-255.00527355,0.00019782,2]
[329825926,1718712644260,-4131.03595864,0.00019793,2]
[329825927,1718712644269,-4131.03595864,0.00019803,2]
[329825928,1718712644280,-39144.67228789,0.0001981,2]
[329825929,1718712644289,-4131.03595864,0.00019814,2]
[329825930,1718712644299,-4131.03595864,0.00019825,2]
[329825931,1718712644309,-500.0,0.0001983,2]
[329825932,1718712644331,-4131.03595864,0.00019836,2]
[329825933,1718712644343,-500.0,0.00019838,2]
[329825934,1718712644356,-500.0,0.00019839,2]
[329825935,1718712644367,-500.0,0.0001984,2]
[329825936,1718712644377,-200.0,0.0001984,2]
[329825937,1718712644387,-1000.0,0.0001984,2]
[329825938,1718712644398,-500.0,0.0001984,2]
[329825939,1718712644409,-500.0,0.0001984,2]
[329825940,1718712644419,-200.0,0.0001984,2]
[329825941,1718712644429,-255.00527353,0.00019841,2]
[329825942,1718712644441,-4131.03595864,0.00019846,2]
[329825943,1718712644451,-500.0,0.00019847,2]
[329825944,1718712644461,-500.0,0.00019847,2]
[329825945,1718712644472,-380.0,0.00019849,15]
[329825946,1718712644482,-500.0,0.00019856,2]
[329825947,1718712644493,-500.0,0.00019856,2]
[329825948,1718712644503,-4131.03595864,0.00019857,2]
[329825949,1718712644513,-380.0,0.00019859,15]
[329825950,1718712644523,-500.0,0.00019865,2]
[329825951,1718712644533,-500.0,0.00019865,2]
[329825952,1718712644543,-4131.03595864,0.00019868,2]
[329825953,1718712644554,-380.0,0.00019869,15]
[329825954,1718712644564,-150.5,0.0001987,15]
[329825955,1718712644574,-150.5,0.0001987,15]
[329825956,1718712644584,-455.0,0.0001987,15]
[329825957,1718712644594,-500.0,0.00019874,2]
[329825958,1718712644605,-500.0,0.00019874,2]
[329825959,1718712644615,-285.06194114,0.00019878,2]
[329825960,1718712644626,-1000.0,0.00019878,2]
[329825961,1718712644636,-281.35964641,0.00019878,2]
[329825962,1718712644646,-658.95366883,0.00019878,2]
[329825963,1718712644656,-4077.59336158,0.00019878,2]
[329825964,1718712644670,-169.6987412,0.00019878,2]
[329825965,1718712644681,-2004.02984244,0.00019878,2]
[329825966,1718712644691,-155.97820346,0.00019878,2]
[329825967,1718712644702,-669.46697903,0.00019878,2]
[329825968,1718712644712,-253.72066577,0.00019878,2]
[329825969,1718712644721,-157.89758845,0.00019878,2]
[329825970,1718712644735,-485.27579162,0.00019878,2]
[329825971,1718712644745,-166.799397,0.00019878,2]
[329825972,1718712644755,-205.53087797,0.00019878,2]
[329825973,1718712644765,-293.52980578,0.00019878,2]
[329825974,1718712644775,-155.29828979,0.00019878,2]
[329825975,1718712644785,-258.37137548,0.00019878,2]
[329825976,1718712644795,-273.90596587,0.00019878,2]
[329825977,1718712644805,-155.0,0.00019878,2]
[329825978,1718712644815,-2991.63756086,0.00019878,2]
[329825979,1718712644825,-3100.39153479,0.00019878,2]
[329825980,1718712644835,-155.23263121,0.00019878,2]
[329825981,1718712644845,-260.40429367,0.00019878,2]
[329825982,1718712644856,-400.0,0.00019878,2]
[329825983,1718712644865,-1807.74119215,0.00019878,2]
[329825984,1718712644875,-448.20174494,0.00019878,2]
[329825985,1718712644884,-28975.03845826,0.00019878,2]
[329825986,1718712644893,-650.10119046,0.00019878,2]
[329825987,1718712644903,-267.31376338,0.00019878,2]
[329825988,1718712644912,-155.85656482,0.00019878,2]
[329825989,1718712644923,-156.59814273,0.00019878,2]
[329825990,1718712644933,-4131.03595864,0.00019879,2]
[329825991,1718712644943,-7124.40516495,0.00019879,2]
[329825992,1718712644952,-150.0,0.00019879,2]
[329825993,1718712644962,-150000.0,0.0001988,2]
[329825994,1718712644972,-150000.0,0.0001988,2]
[329825995,1718712644982,-150000.0,0.0001988,2]
[329825996,1718712644992,-150000.0,0.0001988,2]
[329825997,1718712645004,-150000.0,0.0001988,2]
[329825998,1718712645014,-150000.0,0.0001988,2]
[329825999,1718712645024,-150000.0,0.0001988,2]
[329826000,1718712645034,-150000.0,0.0001988,2]
[329826001,1718712645045,-150.5,0.0001988,15]
[329826002,1718712645055,-455.0,0.0001988,15]
[329826003,1718712645065,-1092806.97897159,0.0001988,2]
[329826004,1718712645074,-251.346985,0.0001988,2]
[329826005,1718712645084,-783.213188,0.0001988,2]
[329826006,1718712645094,-251.346985,0.0001988,2]